Cogmind - Beta 16.1 @@@ ROGUE MODE // 2026.04.12 @ 01:41:44 Player: Parkagirl Result: Destroyed by ZD-1G8(R) with Subdweller Laser Performance ------------- Evolutions (0) 0 Regions Visited (3) 600 Robots Destroyed (6) 30 Value Destroyed (155) 155 Prototype IDs (2) 40 Alien Tech Used (0) 0 Bonus (0) 0 TOTAL SCORE: 825 Bonus ------- None Cogmind --------- Core Integrity 0/250 Matter 285/300 Energy 200/200 System Corruption 0% Temperature Cool (6) Movement Walking (190) Ox1 Location -10/Subcaves Parts ------- > --- POWER (1) -------- Subdweller Power Source > --- PROPULSION (2) --- Aluminum Leg Aluminum Leg > --- UTILITY (2) ------ Large Storage Unit Signal Interpreter > --- WEAPON (2) ------- (None) > --- INVENTORY (15) --- Ion Engine Aluminum Leg Small Storage Unit Subdweller Optics Seismic Detector ECM Suite Peak State ------------ > --- POWER ------------ Light Ion Engine > --- PROPULSION ------- Aluminum Leg Aluminum Leg > --- UTILITY ---------- Small Storage Unit Improved Terrain Scanner > --- WEAPON ----------- Small Laser Light Assault Rifle > --- INVENTORY -------- Ion Engine Light Ion Engine Light Treads Light Treads Compact Wheel Compact Wheel Seismic Detector Light Assault Rifle [Rating: 9] Favorites ----------- Power Light Ion Engine Engine Light Ion Engine Propulsion Light Treads Treads Light Treads Leg Aluminum Leg Utility Signal Interpreter Device Seismic Detector Storage Large Storage Unit Processor Signal Interpreter Weapon Small Laser Energy Gun Small Laser Ballistic Gun Light Assault Rifle Build | -11 -10 -10 -10 ------- Run | Yrd Mat Min Sub Slots Evolved . | . . . . Power . | . . . . Propulsion . | . . . . Utility . | . . . . Weapon . | . . . . Parts Attached 16 | 8 2 3 3 Power 3 | 1 1 . 1 Engine 3 | 1 1 . 1 Core . | . . . . Reactor . | . . . . Propulsion 5 | 2 . 2 1 Treads 2 | . . 2 . Leg 3 | 2 . . 1 Wheel . | . . . . Hover . | . . . . Flight . | . . . . Utility 5 | 3 1 1 . Device 2 | 2 . . . Storage 2 | 1 . 1 . Processor 1 | . 1 . . Hackware . | . . . . Protection . | . . . . Artifact . | . . . . Weapon 3 | 2 . . 1 Energy Gun 1 | 1 . . . Energy Cannon . | . . . . Ballistic Gun 2 | 1 . . 1 Ballistic Cannon . | . . . . Launcher . | . . . . Special Weapon . | . . . . Impact Weapon . | . . . . Slashing Weapon . | . . . . Piercing Weapon . | . . . . Special Melee Weapon . | . . . . Unidentified Prototypes . | . . . . Parts Lost 6 | . 1 . 5 Power 1 | . 1 . . Propulsion 2 | . . . 2 Utility . | . . . . Weapon 3 | . . . 3 Highest Loss Streak 2 | . 1 . 2 To Critical Strikes 1 | . . . 1 Average Backups 7 | 5 7 7 8 Power 1 | . 1 1 1 Propulsion 3 | 3 3 3 3 Utility 2 | . 1 2 3 Weapon . | . 1 1 . Tool/Special . | . . . . Unused Backups 6 | . 2 1 3 Power 1 | . . . 1 Propulsion 3 | . 2 1 . Utility 2 | . . . 2 Weapon . | . . . . Tool/Special . | . . . . Average Slot Usage (%) 95 | . 93 100 94 Engine 13 | . 11 14 13 Treads 16 | . . 17 26 Leg 10 | . 28 10 . Storage 14 | . 14 14 14 Processor 13 | . 10 14 14 Energy Gun 13 | . 14 14 12 Ballistic Gun 12 | . 14 14 11 Peak Build Rating 9 | 9 7 7 8 Average Rating 6 | 5 6 7 7 On Entrance 5 | . 6 7 7 Avg Prop Armor Cover (%) . | . . . . Naked Turns . | . . . . Heaviest Build 27 | 11 10 25 27 Greatest Support 40 | 20 20 40 40 Greatest Overweight (x) 1 | 1 . . 1 Average Overweight (x) . | . . . . Largest Inventory Capacity 15 | 8 8 15 15 Average Capacity 11 | 7 8 12 15 Most Carried 8 | 8 8 8 8 Average Carried 7 | 6 7 7 7 Final Capacity 15 | 8 8 15 15 Final Carried 8 | 8 7 8 6 Class Distribution -------------------- 100% | Mutant Dominant Class ---------------- Mutant | -10/Materials Mutant | -10/Mines Mutant | -10/Subcaves Resources | -11 -10 -10 -10 ----------- Run | Yrd Mat Min Sub Matter Collected 373 | 277 36 40 20 Remotely . | . . . . Salvage Created 266 | 101 130 . 35 Parts 14 | 4 6 . 4 Haulers Intercepted . | . . . . Recyclers Shooed . | . . . . Parts Field Recycled . | . . . . Retrieved Matter . | . . . . Parts Self-Destructed 12 | . . . 12 Prevented . | . . . . Parts Restored . | . . . . Kills | -11 -10 -10 -10 ------- Run | Yrd Mat Min Sub Combat Hostiles Destroyed 4 | . 3 . 1 Guns 4 | . 3 . 1 Classes Destroyed 4 | 2 1 . 1 Tunneler 1 | 1 . . . Recycler 1 | 1 . . . Grunt 3 | . 3 . . Subdweller 1 | . . . 1 Best Kill Streak 2 | 1 2 . 1 Combat Bots Only 2 | . 2 . 1 Max Kills in Single Turn 1 | 1 1 . 1 Gunslinging . | . . . . Exploded . | . . . . Melee . | . . . . Uniques/NPCs Destroyed . | . . . . Combat | -11 -10 -10 -10 -------- Run | Yrd Mat Min Sub Hostile Shots Fired 80 | . 27 . 53 Missed 20 | . 3 . 17 Hits 60 | . 24 . 36 Projectile 60 | . 24 . 36 Critical Strikes 3 | . . . 3 Damage Taken 1011 | . 265 . 746 Core 258 | . 31 . 227 Absorbed by Shields . | . . . . Core Remaining (%) 100 | 100 . . . Volleys Fired 41 | 7 20 . 14 Largest 2 | 2 2 . 2 Hottest 60 | 60 60 . 60 Shots Fired 75 | 14 40 . 21 Gun 75 | 14 40 . 21 Cannon . | . . . . Launcher . | . . . . Special . | . . . . Kinetic 34 | 7 20 . 7 Thermal 41 | 7 20 . 14 Explosive . | . . . . Electromagnetic . | . . . . Robot Hit Streak 13 | 3 4 . 13 Robot Miss Streak 3 | 3 3 . 1 Penetration Max . | . . . . Secondary Targets 1 | . 1 . . Max Gunslinging Chain 1 | . 1 . . Shots Hit Robots 49 | 7 22 . 20 Core Hits 18 | 4 10 . 4 Critical Kills . | . . . . Critical Parts Destroyed . | . . . . Critical Strikes . | . . . . Melee Attacks . | . . . . Impact . | . . . . Slashing . | . . . . Piercing . | . . . . Sneak Attacks . | . . . . Combat Hostiles . | . . . . Follow-up Attacks . | . . . . Damage Inflicted 486 | 76 205 . 205 Guns 486 | 76 205 . 205 Cannons . | . . . . Explosions . | . . . . Melee . | . . . . Ramming . | . . . . Kinetic 201 | 44 97 . 60 Thermal 285 | 32 108 . 145 Explosive . | . . . . Electromagnetic . | . . . . Impact . | . . . . Slashing . | . . . . Piercing . | . . . . Highest Corruption . | . . . . Average Corruption . | . . . . Corruption Purged . | . . . . Corruption Blocked . | . . . . Overload Shots . | . . . . Overflow Damage . | . . . . Projectiles . | . . . . Explosions . | . . . . Melee . | . . . . Knockbacks . | . . . . Impact . | . . . . Kinetic . | . . . . Secondary . | . . . . Self-Inflicted Damage . | . . . . Shots . | . . . . Rammed . | . . . . Targets Rammed . | . . . . Kicked . | . . . . Crushed . | . . . . Highest Temperature 76 | 40 76 . . Average Temperature 29 | 17 33 . . Received Heat Transfer 186 | . 144 . 42 Siege Activations . | . . . . Martial Activations . | . . . . Shielding Activations . | . . . . Robots Disrupted . | . . . . Combat Hostiles . | . . . . Robots Corrupted . | . . . . Combat Hostiles . | . . . . Parts Fried . | . . . . Impact Corruptions . | . . . . Robots Melted . | . . . . Combat Hostiles . | . . . . Parts Melted . | . . . . Heat Transferred 650 | 75 250 . 325 Parts Sabotaged . | . . . . Parts Stolen . | . . . . Parts Stripped . | . . . . Power Chain Reactions . | . . . . Alert | -11 -10 -10 -10 ------- Run | Yrd Mat Min Sub Maximum Alert Level . | . . . . Low Security (%) 100 | 100 100 100 . Level 1 . | . . . . Level 2 . | . . . . Level 3 . | . . . . Level 4 . | . . . . Level 5 . | . . . . High Security . | . . . . Max Security . | . . . . Peak Influence 55 | 5 55 5 . Initial 5 | . . 5 . Average 7 | . 19 . . Influence Increases 134 | 10 124 . . Destroy 0b10 Robot/C 60 | . 60 . . Destroy 0b10 Robot/NC 10 | 10 . . . Destroy Leader 10 | . 10 . . Successful Hack 9 | . 9 . . Partial Spotted 15 | . 15 . . Lose Combat Pursuer 30 | . 30 . . Influence Decreases 134 | 10 109 15 . Entered New Map 10 | . . 10 . Time Decay 114 | 10 99 5 . Lost Part 10 | . 10 . . Squads Dispatched 2 | . 2 . . Investigation 1 | . 1 . . Extermination . | . . . . Reinforcement 1 | . 1 . . Assault . | . . . . Garrison . | . . . . Intercept . | . . . . Searches Triggered . | . . . . Construction Impeded . | . . . . Haulers Reinforced . | . . . . Active Scanning Responses . | . . . . Cargo Convoy Interrupts . | . . . . Stealth | -11 -10 -10 -10 --------- Run | Yrd Mat Min Sub Distress Signals . | . . . . Communications Jammed . | . . . . Distress Signals . | . . . . Times Spotted 15 | . 11 . 4 Peak Tracking Total 3 | . 3 . 3 Tactical Retreats 2 | . 2 . . Traps | -11 -10 -10 -10 ------- Run | Yrd Mat Min Sub Traps Triggered . | . . . . Indirectly . | . . . . Trap Hack Attempts . | . . . . Triggered . | . . . . Disarmed . | . . . . Reprogrammed . | . . . . Reused . | . . . . Traps Extracted . | . . . . Installed . | . . . . Triggered . | . . . . Machines | -11 -10 -10 -10 ---------- Run | Yrd Mat Min Sub Machines Disabled . | . . . . Max in Single Turn . | . . . . Machines Repaired . | . . . . Machines Dismantled . | . . . . Machines Sabotaged . | . . . . Overloaded Fab Kills . | . . . . Hacking | -11 -10 -10 -10 --------- Run | Yrd Mat Min Sub Machines Accessed 4 | . 3 . 1 Terminals 3 | . 3 . . Fabricators . | . . . . Repair Stations . | . . . . Recycling Units . | . . . . Scanalyzers . | . . . . Garrison Access . | . . . . Total Hacks 16 | . 12 . 4 Successful 13 | . 9 . 4 Failed 3 | . 3 . . Catastrophic 1 | . 1 . . Database Lockouts . | . . . . Manual . | . . . . Terminals 12 | . 12 . . Fabricators . | . . . . Repair Stations . | . . . . Recycling Units . | . . . . Scanalyzers . | . . . . Garrison Access . | . . . . Terminal Hacks 13 | . 9 . 4 Record 4 | . . . 4 Prototype ID Bank 1 | . 1 . . Alert Level 2 | . 2 . . Locate Traps 1 | . 1 . . Dispatch Records 2 | . 2 . . Maintenance Status 1 | . 1 . . Hauler Manifests 1 | . 1 . . Zone Layout 1 | . 1 . . Fabricator Hacks . | . . . . Repair Station Hacks . | . . . . Recycling Unit Hacks . | . . . . Scanalyzer . | . . . . Garrison Access Hacks . | . . . . Unauthorized Hacks . | . . . . Terminals . | . . . . Fabricators . | . . . . Repair Stations . | . . . . Recycling Units . | . . . . Scanalyzers . | . . . . Garrison Access . | . . . . Data Cores Recovered . | . . . . Used . | . . . . Hacking Detections 2 | . 2 . . Full Trace Events 1 | . 1 . . Feedback Events . | . . . . Feedback Blocked . | . . . . Robot Schematics Acquired . | . . . . Robots Built . | . . . . Authchips . | . . . . Time . | . . . . Total Robot Build Rating . | . . . . Part Schematics Acquired . | . . . . Parts Built . | . . . . Authchips . | . . . . Time . | . . . . Total Part Build Rating . | . . . . Part Studies Acquired . | . . . . Parts Repaired . | . . . . Time . | . . . . Parts Recycled . | . . . . Recycled Matter . | . . . . Retrieved Matter . | . . . . Retrieved Components . | . . . . Parts Scanalyzed . | . . . . Part Schematics Acquired . | . . . . Parts Damaged . | . . . . Bothacking | -11 -10 -10 -10 ------------ Run | Yrd Mat Min Sub Used RIF Installer . | . . . . Robots Hacked . | . . . . Non-combat . | . . . . Combat . | . . . . Robot Hacks Applied . | . . . . Relay Couplers Released . | . . . . Fabnet Peak Effective % . | . . . . Robots Rewired . | . . . . Allies Hacked . | . . . . Hacks Repelled . | . . . . Allies | -11 -10 -10 -10 -------- Run | Yrd Mat Min Sub Total Allies . | . . . . Largest Group . | . . . . Highest-Rated Group . | . . . . Highest-Rated Ally . | . . . . Total Orders . | . . . . Ally Attacks . | . . . . Total Damage . | . . . . Kills . | . . . . Allies Corrupted . | . . . . Allies Melted . | . . . . Intel | -11 -10 -10 -10 ------- Run | Yrd Mat Min Sub Active Infowar (turns) 49 | 49 . . . Terrain 1 | 1 . . . Seismic 48 | 48 . . . Robot Analysis Total . | . . . . Derelict Logs Recovered 2 | . . 2 . Drone Launches . | . . . . Drone Recoveries . | . . . . Exploration | -11 -10 -10 -10 ------------- Run | Yrd Mat Min Sub Turns Passed 1060 | 137 243 244 436 Spaces Moved 637 | 89 151 165 232 Core 20 | 20 . . . Treads 331 | . . 101 230 Legs 286 | 69 151 64 2 Wheels . | . . . . Hover . | . . . . Flight . | . . . . Fastest Speed 50 | 50 120 120 160 Average Speed 141 | 107 120 144 165 Slowest Speed 240 | 120 120 160 240 Overloaded Moves . | . . . . Propulsion Burnouts . | . . . . Robots Hopped . | . . . . Potential Cave-ins . | . . . . Cave-ins Triggered . | . . . . Exploration Rate (%) 21 | 3 23 46 12 Regions Visited 3 Branch Regions 2 Pre-discovered Areas 1 | . . 1 . Known Exits Taken 2 | . 1 1 . Unknown Exits Taken 1 | 1 . . . Scrap Searched 1 | . . 1 . Spaces Dug . | . . . . Terrain Destroyed . | . . . . Melee . | . . . . Projectile . | . . . . AOE . | . . . . Terrain Rammed . | . . . . Walls Destroyed . | . . . . Machines Disabled . | . . . . Actions | -11 -10 -10 -10 --------- Run | Yrd Mat Min Sub Total 729 | 116 177 170 266 Wait 13 | . 1 . 12 Move 634 | 88 150 164 232 Hop . | . . . . Pick Up 18 | 12 2 2 2 Fast Attach 5 | 3 1 . 1 Attach 8 | 4 1 . 3 Detach . | . . . . Swap 4 | 1 . 3 . Drop 6 | 1 2 1 2 Fire 41 | 7 20 . 14 Melee . | . . . . Ram . | . . . . Kick . | . . . . Crush . | . . . . Escape Stasis . | . . . . Rewire . | . . . . Trap . | . . . . Miscellaneous . | . . . . Route ------- -11/Scrapyard -10/Materials -10/Mines -10/Subcaves (discovered 3 exits: Mat x2 / Rec) History --------- Turn | Location | Event 7 | -11/Scrapyard | Discovered new exit (range 14) 138 | -11/Scrapyard | Entered Materials 300 | -10/Materials | Build established: Mutant 356 | -10/Materials | Discovered new exit (range 7) 380 | -10/Materials | Identified exit to Mines 381 | -10/Materials | Entered Mines 540 | -10/Mines | Learned Materials stockpile data 611 | -10/Mines | Discovered new exit (range 7) 624 | -10/Mines | Identified exit to Subcaves 625 | -10/Mines | Entered Subcaves 626 | -10/Subcaves | Shifting Twisted Machinery released Shrapnel Trap 626 | -10/Subcaves | Approached by a straggling Scientist 642 | -10/Subcaves | Shifting Twisted Machinery released Battle Cannon 781 | -10/Subcaves | Visited Clippyterm 786 | -10/Subcaves | Identified exit to Recycling 786 | -10/Subcaves | Identified exit to Materials 786 | -10/Subcaves | Learned Research security intel 811 | -10/Subcaves | Shifting Twisted Machinery released Sub. Monowheel 815 | -10/Subcaves | Core integrity fell below 50% 1018 | -10/Subcaves | Core integrity fell below 20% 1061 | -10/Subcaves | Destroyed by ZD-1G8(R) with Subdweller Laser Last Messages --------------- Sub. Monowheel falls loose from the Twisted Machinery. 00833_ CP-GWI(R) destroyed. 00839_ Dropped Lgt. Ion Engine. 00840_ Acquired 10 matter. 00842_ Acquired Scrap Shield Fragment. 00843_ Dropped Scrap Shield Fragment. 00845_ Acquired Sub. Optics. 00849_ Acquired Sub. Power Source. 00851_ Acquired 10 matter. 00890_ Subatomizers dissect the Lgt. Ion Engine, destroying it. 00973_ XC-GYA(u) tweaks Twisted Machinery. 01013_ Lgt. Treads destroyed. 01018_ XC-GYA(u) tweaks Twisted Machinery. 01021_ Sml. Laser destroyed. 01038_ XC-GYA(u) builds Twisted Machinery. 01056_ Critical hit (Destroy). 01056_ Lgt. Treads destroyed. 01059_ Lgt. Assault Rifle destroyed. Map ----- +----------------------------------------------------+ | ??????????????????????????????????????????????? | | ??????????????????????????????????????????????? | | ??????????????????????????????????????????????? | | ??????????????????????????????????????????????? | | ??????????????????????????????????????????????? | | ???????????? ????????????????????????????????? | | ???????????? ????????????????????????????????? | | ???????????? ????????????????????????????????? | | ???????????# ????????????????????????????????? | | ??????????## ????????? ??????????????????????? | | ??????# ??# ?????? " ???????????????????????? | | ??????# ?# ????? " ""??????????????????????? | | ??????? ## ???? """??????????????????????? | | ???????? #???? ]"""""?????????????????????? | | ####???? ##?## "" "" ????????????????????? | | # ##???? ### ""&""" ????????????????????? | | #?????# "" " " ###??????????????????? | | #####?### " "" "" ##?????????????????? | | ## ### # " "" " ####??????????????? | | % """" " ##?????????????? | | """"" #?????????????? | | ## # # # """ #?????????????? | | ######## # # # #?????????????? | | #?# # # ## #?????????????? | | ##?# # ### # ## # #?????????????? | | ##??# % # ## ## @ #?????????????? | | #???# ##### # ##?????????????? | | ????# ## #?## ## ##??????????????? | | ????## ### ### ### #??????????????? | | ?????### #### ## ##?? ##??????????????? | | ???????######?# ##R ####??? ???????????????? | | ??????>??????## R###?????? #??????????????? | | ?????????????#"" #??????? #??????????????? | | ?????????????#""" "##?##? #??????????????? | | ????????????##" " "## # ##??????????????? | | ????????????#" "" " ##????????????????? | | #???????????#"" # " ##?????????????????? | | #???????????#"" #"" ### ##??????????????????? | | #???????????##""##" ##?? ##?????????????????? | | #????????######### #?# ###???????????????? | | #????????# ## ## ##??????????????? | | #????????# ## " #??????????????? | | ??????????# " #??????????????? | | ??????????# " #??????????????? | | ??????????## " ##??????????????? | | ???????????## " #???????????????? | | ????????????## ## #???????????????? | | ?????????????## ##?## #???????????????? | | ??????????????# ######???? ##???????????????? | | ????????????? #?????????? #???????????????? | +----------------------------------------------------+ Best States ------------- Heat Dissipation 25 Energy Generation 15 Energy Capacity 200 Matter Stores 300 Matter Capacity 300 Sight Range 16 Terrain Scan Density 10 Evasion (%) 55 Recoil Reduction 2 Item Schematics ----------------- None Robot Schematics ------------------ None Fabricated ------------ Nothing Repaired ---------- Nothing Studied --------- None Alien Tech Used ----------------- None Achievements -------------- None Challenges ------------ None Game ------ Seed ShockHeatInterface Manual? 0 Play Time 00:14:11 Cumulative 14.6 hours Start 2026.03.14 @ 22:44:49 End 2026.04.12 @ 01:41:44 Sessions 8 Manual Loads 0 Difficulty Rogue Special Mode None Game No. 29 Rogue 29 Adventurer 0 Explorer 0 Win Type - Total 0 Types 0/0/0/0/0/0/0/0/0/0 Lore% 18 Gallery% 17 Achievement% 16 Wizard Run 0 Options --------- Layout 1 ASCII 0 Keyboard 0 Movement Vi Keybinds 0 Fullscreen 1 Font 24/Smallcaps Map View 50x40 Zoom Use 0% Tactical HUD 1 Map Filters NONE Filters NONE Steam 1 RUN: 18e53ed3-6827-4c6f-ae96-af2e38339cd9